Body Name,Document Number,Service,Type of Expenditure,Invoice Date,Supplier Name,Cost to the Council (Amount Exc VAT),Month
EREWASH BOROUGH COUNCIL,222569,Homelessness,Temporary Accommodation,07/12/20,A38 WOODLANDS,462,Dec-20
EREWASH BOROUGH COUNCIL,222769,Homelessness,Temporary Accommodation,14/12/20,A38 WOODLANDS,462,Dec-20
EREWASH BOROUGH COUNCIL,222443,Homelessness,Temporary Accommodation,30/11/20,A38 WOODLANDS,462,Dec-20
EREWASH BOROUGH COUNCIL,222525,Balance Sheet,COVID 19 - Additional Restrictions Grant,09/12/20,A52 CARS LIMITED,1000,Dec-20
EREWASH BOROUGH COUNCIL,222529,Balance Sheet,COVID 19 - Additional Restrictions Grant,09/12/20,ADAM FRETWELL PT,500,Dec-20
EREWASH BOROUGH COUNCIL,222367,Balance Sheet,ICT Works,31/10/20,ADVANCED BUSINESS SOFTWARE & SOLUTIONS LIMITED,7993.37,Dec-20
EREWASH BOROUGH COUNCIL,222391,Balance Sheet,ICT Works,30/11/20,ADVANCED BUSINESS SOFTWARE & SOLUTIONS LIMITED,8955.24,Dec-20
EREWASH BOROUGH COUNCIL,222360,Community Grants,Grants and Subscriptions,01/12/20,ALL SAINTS SAWLEY PCC,400,Dec-20
EREWASH BOROUGH COUNCIL,222661,Treasury Management and Bank Charges,Allpay/Post Office Charges,30/11/20,ALLPAY LIMITED,932.16,Dec-20
EREWASH BOROUGH COUNCIL,222515,Property and Estates,Reactive Maintenance,30/11/20,ALPHA DRAIN SERVICES,303.75,Dec-20
EREWASH BOROUGH COUNCIL,222330,Property and Estates,Reactive Maintenance,26/11/20,ALPHA DRAIN SERVICES,270,Dec-20
EREWASH BOROUGH COUNCIL,222159,Pedestrian Zones - Ilkeston and Long Eaton,Reactive Maintenance,19/11/20,ALPHA DRAIN SERVICES,1686,Dec-20
EREWASH BOROUGH COUNCIL,222312,Property and Estates,Planned Preventative Maintenance,18/11/20,ALPHA PARTNER (MIDLANDS)  LIMITED,1990,Dec-20
EREWASH BOROUGH COUNCIL,222311,Property and Estates,Reactive Maintenance,16/11/20,ALPHA PARTNER (MIDLANDS)  LIMITED,215,Dec-20
EREWASH BOROUGH COUNCIL,222310,Property and Estates,Planned Preventative Maintenance,16/11/20,ALPHA PARTNER (MIDLANDS)  LIMITED,690,Dec-20
EREWASH BOROUGH COUNCIL,222308,Property and Estates,Planned Preventative Maintenance,20/11/20,ALPHA PARTNER (MIDLANDS)  LIMITED,624,Dec-20
EREWASH BOROUGH COUNCIL,222147,Property and Estates,Reactive Maintenance,16/11/20,ALPHA PARTNER (MIDLANDS)  LIMITED,273,Dec-20
EREWASH BOROUGH COUNCIL,222309,Property and Estates,Planned Preventative Maintenance,16/11/20,ALPHA PARTNER (MIDLANDS)  LIMITED,1813,Dec-20
EREWASH BOROUGH COUNCIL,222313,Property and Estates,Planned Preventative Maintenance,16/11/20,ALPHA PARTNER (MIDLANDS)  LIMITED,1025.8,Dec-20
EREWASH BOROUGH COUNCIL,222634,Balance Sheet,COVID 19 - Additional Restrictions Grant,16/12/20,AMALFI WOMAN LTD,1500,Dec-20
EREWASH BOROUGH COUNCIL,222684,Housing Benefit Administration,Project Grants,08/12/20,ANDY THURMAN LTD,1600,Dec-20
EREWASH BOROUGH COUNCIL,222521,ICT Support Services,Office Paper,03/12/20,ANTALIS DOCUMENT SUPPLIES,268,Dec-20
EREWASH BOROUGH COUNCIL,222578,ICT Support Services,Office Paper,02/12/20,ANTALIS DOCUMENT SUPPLIES,241,Dec-20
EREWASH BOROUGH COUNCIL,222503,ICT Support Services,Office Paper,08/12/20,ANTALIS DOCUMENT SUPPLIES,241,Dec-20
EREWASH BOROUGH COUNCIL,222149,Pedestrian Zones - Ilkeston and Long Eaton,PPM Mechanical and Equipment,05/11/20,ASM CONTRACTS LTD,727,Dec-20
EREWASH BOROUGH COUNCIL,222149,Pedestrian Zones - Ilkeston and Long Eaton,Repairs and Maintenance,05/11/20,ASM CONTRACTS LTD,217.5,Dec-20
EREWASH BOROUGH COUNCIL,221858,Corporate Health and Safety,Electrical Testing,06/11/20,ATMAN UK LTD,763.62,Dec-20
EREWASH BOROUGH COUNCIL,222026,Civic Duties Hospitality,Civic Events,08/11/20,B&B AUDIO,32,Dec-20
EREWASH BOROUGH COUNCIL,222026,Civic Duties Hospitality,Remembrance Services,08/11/20,B&B AUDIO,680,Dec-20
EREWASH BOROUGH COUNCIL,222060,Public Conveniences,Materials/Consumables,12/11/20,BANNER GROUP LIMITED,431.22,Dec-20
EREWASH BOROUGH COUNCIL,222180,Trees Hedges and Local Nature Reserves,Materials/Consumables,17/11/20,BARCHAM TREES PLC,3173,Dec-20
EREWASH BOROUGH COUNCIL,222750,Balance Sheet,COVID 19 - Additional Restrictions Grant,22/12/20,BATTERED ILKESTON LTD,1000,Dec-20
EREWASH BOROUGH COUNCIL,222380,Parish Council Concurrent Functions,Breadsall - Precept,02/12/20,BREADSALL PARISH COUNCIL,1361,Dec-20
EREWASH BOROUGH COUNCIL,222380,Parish Precepts,Breadsall - Precept,02/12/20,BREADSALL PARISH COUNCIL,3375,Dec-20
EREWASH BOROUGH COUNCIL,222778,Community Grants,Grants and Subscriptions,21/12/20,BREASTON COMMUNITY FORUM,500,Dec-20
EREWASH BOROUGH COUNCIL,222368,Parish Council Concurrent Functions,Breaston - Precept,02/12/20,BREASTON PARISH COUNCIL,11494,Dec-20
EREWASH BOROUGH COUNCIL,222368,Parish Precepts,Breaston - Precept,02/12/20,BREASTON PARISH COUNCIL,12960,Dec-20
EREWASH BOROUGH COUNCIL,222514,ICT Support Services,Telephones,22/11/20,BRITISH TELECOMMUNICATIONS PLC,1705.13,Dec-20
EREWASH BOROUGH COUNCIL,222346,Green Space,Contracted Services,26/11/20,BROXAP LIMITED,275,Dec-20
EREWASH BOROUGH COUNCIL,222427,ICT Support Services,Data Lines,15/10/20,BT GLOBAL SERVICES,6833.65,Dec-20
EREWASH BOROUGH COUNCIL,222717,Occupational Health and Welfare,Occupational Health Service,19/10/20,BUPA HEALTH CLINICS,750,Dec-20
EREWASH BOROUGH COUNCIL,222506,Occupational Health and Welfare,Occupational Health Service,01/12/20,BUPA HEALTH CLINICS,406.44,Dec-20
EREWASH BOROUGH COUNCIL,222106,Noise Control,General Equipment,11/11/20,CAMPBELL ASSOCIATES,830,Dec-20
EREWASH BOROUGH COUNCIL,222662,Treasury Management and Bank Charges,Credit/Debit Card Charges,14/09/20,CAPITA,2943.87,Dec-20
EREWASH BOROUGH COUNCIL,222663,Treasury Management and Bank Charges,Credit/Debit Card Charges,11/11/20,CAPITA,3174.5,Dec-20
EREWASH BOROUGH COUNCIL,222246,Development Control - Fee Earning,Agency Staff,18/11/20,CARRINGTON WEST LIMITED,370,Dec-20
EREWASH BOROUGH COUNCIL,222728,Development Control - Fee Earning,Agency Staff,09/12/20,CARRINGTON WEST LIMITED,370,Dec-20
EREWASH BOROUGH COUNCIL,222036,Development Control - Fee Earning,Agency Staff,11/11/20,CARRINGTON WEST LIMITED,370,Dec-20
EREWASH BOROUGH COUNCIL,222341,Development Control - Fee Earning,Agency Staff,25/11/20,CARRINGTON WEST LIMITED,370,Dec-20
EREWASH BOROUGH COUNCIL,221900,Development Control - Fee Earning,Agency Staff,04/11/20,CARRINGTON WEST LIMITED,370,Dec-20
EREWASH BOROUGH COUNCIL,222516,ICT Support Services,General Equipment,01/12/20,CCS MEDIA LIMITED,567.99,Dec-20
EREWASH BOROUGH COUNCIL,222398,Balance Sheet,Fuel Store,25/11/20,CERTAS ENERGY UK LIMITED T/A CARLTON FUELS,26407.4,Dec-20
EREWASH BOROUGH COUNCIL,221851,Green Space,Materials/Consumables,05/11/20,CHRIS NANGLE FURNITURE,1560,Dec-20
EREWASH BOROUGH COUNCIL,222706,Arts Development,Special Events,17/12/20,REDACTED PERSONAL DATA,340,Dec-20
EREWASH BOROUGH COUNCIL,222328,Revenues and Benefits,Software Licences,30/11/20,CIVICA UK LIMITED,19000,Dec-20
EREWASH BOROUGH COUNCIL,222639,Balance Sheet,COVID 19 - Additional Restrictions Grant,16/12/20,CKHECKMATE DRIVER TRAINING,1000,Dec-20
EREWASH BOROUGH COUNCIL,222616,ICT Support Services,Mobile Phones,01/12/20,CLASS AFFINITY PROJECTS LTD,2253.88,Dec-20
EREWASH BOROUGH COUNCIL,222556,Property and Estates,PPM Mechanical and Equipment,08/12/20,CONCEPT ELEVATORS (UK) LTD,360.67,Dec-20
EREWASH BOROUGH COUNCIL,222763,Household/Residual Waste Collection,Bin Liners,29/10/20,CROMWELL POLYTHENE LTD,306.56,Dec-20
EREWASH BOROUGH COUNCIL,222466,Green Space,Materials/Consumables,03/11/20,CROMWELL POLYTHENE LTD,686.7,Dec-20
EREWASH BOROUGH COUNCIL,222138,Street Scene,Materials/Consumables,17/11/20,CROMWELL POLYTHENE LTD,8.85,Dec-20
EREWASH BOROUGH COUNCIL,222280,Street Scene,Materials/Consumables,23/11/20,CROMWELL POLYTHENE LTD,1982.4,Dec-20
EREWASH BOROUGH COUNCIL,222138,Street Scene,Bins,17/11/20,CROMWELL POLYTHENE LTD,1191.6,Dec-20
EREWASH BOROUGH COUNCIL,222755,Balance Sheet,COVID 19 - Additional Restrictions Grant,22/12/20,CRUISE-IN-CONTROL LIMITED,1000,Dec-20
EREWASH BOROUGH COUNCIL,222762,Civic Transport,Hire Charges,01/01/21,CRUISE-IN-CONTROL LIMITED,1000,Dec-20
EREWASH BOROUGH COUNCIL,222351,Green Space,Materials/Consumables,22/10/20,DAB GRAPHICS,1851,Dec-20
EREWASH BOROUGH COUNCIL,222369,Parish Council Concurrent Functions,Dale Abbey - Precept,02/12/20,DALE ABBEY PARISH COUNCIL,2393,Dec-20
EREWASH BOROUGH COUNCIL,222369,Parish Precepts,Dale Abbey - Precept,02/12/20,DALE ABBEY PARISH COUNCIL,2194,Dec-20
EREWASH BOROUGH COUNCIL,222727,Development Control - Fee Earning,Consultants Fees,02/12/20,DAVID HUGHES AGRICULTURAL CONSULTANCY LTD,300,Dec-20
EREWASH BOROUGH COUNCIL,222774,Economic Development,Project Grants,30/11/20,DCA CONSULTANCY LIMITED,16600,Dec-20
EREWASH BOROUGH COUNCIL,222024,Green Space,Materials/Consumables,09/11/20,DECORATING WAREHOUSE LTD,236.76,Dec-20
EREWASH BOROUGH COUNCIL,222319,Household/Residual Waste Collection,Repairs and Maintenance,26/11/20,DENNIS EAGLE LTD,1107.14,Dec-20
EREWASH BOROUGH COUNCIL,222320,Household/Residual Waste Collection,Repairs and Maintenance,25/11/20,DENNIS EAGLE LTD,299.34,Dec-20
EREWASH BOROUGH COUNCIL,222799,Non Domestic Rates Income and Expenditure,NNDR Tariff,21/12/20,DERBY CITY COUNCIL,520564.97,Dec-20
EREWASH BOROUGH COUNCIL,222568,Homelessness,Temporary Accommodation,24/11/20,DERBY GUESTHOUSE LIMITED,560,Dec-20
EREWASH BOROUGH COUNCIL,222567,Homelessness,Temporary Accommodation,24/11/20,DERBY GUESTHOUSE LIMITED,150,Dec-20
EREWASH BOROUGH COUNCIL,222567,Homelessness,Temporary Accommodation,24/11/20,DERBY GUESTHOUSE LIMITED,350,Dec-20
EREWASH BOROUGH COUNCIL,222785,Balance Sheet,Payroll Collection A/c - Credit Union,22/12/20,DERBYSHIRE COMMUNITY BANK,330,Dec-20
EREWASH BOROUGH COUNCIL,222693,Balance Sheet,Grant Payments,12/11/20,DERBYSHIRE COUNTY COUNCIL...,2340,Dec-20
EREWASH BOROUGH COUNCIL,222591,Balance Sheet,Payroll Collection A/c - Purchase Added Years,15/12/20,DERBYSHIRE COUNTY COUNCIL...,274.57,Dec-20
EREWASH BOROUGH COUNCIL,222449,Balance Sheet,Grant Payments,26/10/20,DERBYSHIRE COUNTY COUNCIL...,5411.1,Dec-20
EREWASH BOROUGH COUNCIL,222450,Balance Sheet,Grant Payments,16/11/20,DERBYSHIRE COUNTY COUNCIL...,5157.63,Dec-20
EREWASH BOROUGH COUNCIL,222452,Balance Sheet,Grant Payments,22/10/20,DERBYSHIRE COUNTY COUNCIL...,3844.01,Dec-20
EREWASH BOROUGH COUNCIL,222614,Balance Sheet,Grant Payments,22/10/20,DERBYSHIRE COUNTY COUNCIL...,5029,Dec-20
EREWASH BOROUGH COUNCIL,222417,Residents Parking Scheme,Season Tickets,24/11/20,DERBYSHIRE COUNTY COUNCIL...,4420.97,Dec-20
EREWASH BOROUGH COUNCIL,222583,Compensation and Pensions,Compensatory Added Years,12/11/20,DERBYSHIRE COUNTY COUNCIL...,18717.9,Dec-20
EREWASH BOROUGH COUNCIL,222451,Balance Sheet,Grant Payments,09/11/20,DERBYSHIRE COUNTY COUNCIL...,4666.3,Dec-20
EREWASH BOROUGH COUNCIL,222418,Residents Parking Scheme,Season Tickets,20/11/20,DERBYSHIRE COUNTY COUNCIL...,5476.97,Dec-20
EREWASH BOROUGH COUNCIL,222412,Emergency Planning,Contracted Services,03/12/20,DERBYSHIRE COUNTY COUNCIL...,1000,Dec-20
EREWASH BOROUGH COUNCIL,222453,Balance Sheet,Grant Payments,26/10/20,DERBYSHIRE COUNTY COUNCIL...,4594.5,Dec-20
EREWASH BOROUGH COUNCIL,222454,Balance Sheet,Grant Payments,09/11/20,DERBYSHIRE COUNTY COUNCIL...,4391.38,Dec-20
EREWASH BOROUGH COUNCIL,222591,Balance Sheet,Payroll Collection A/c - Superannuation,15/12/20,DERBYSHIRE COUNTY COUNCIL...,207755.9,Dec-20
EREWASH BOROUGH COUNCIL,222729,Development Control - Fee Earning,Consultants Fees,07/12/20,DERBYSHIRE COUNTY COUNCIL...,2766.94,Dec-20
EREWASH BOROUGH COUNCIL,222291,Atmospheric Pollution,Nitrogen Dioxide Survey,18/11/20,DERBYSHIRE COUNTY COUNCIL...,295,Dec-20
EREWASH BOROUGH COUNCIL,222613,Balance Sheet,Grant Payments,22/10/20,DERBYSHIRE COUNTY COUNCIL...,4120,Dec-20
EREWASH BOROUGH COUNCIL,222612,Balance Sheet,Grant Payments,22/10/20,DERBYSHIRE COUNTY COUNCIL...,4058,Dec-20
EREWASH BOROUGH COUNCIL,222370,Parish Precepts,Draycott - Precept,02/12/20,DRAYCOTT PARISH COUNCIL,12122,Dec-20
EREWASH BOROUGH COUNCIL,222370,Parish Council Concurrent Functions,Draycott - Precept,02/12/20,DRAYCOTT PARISH COUNCIL,7543,Dec-20
EREWASH BOROUGH COUNCIL,222630,Community Grants,Grants and Subscriptions,15/12/20,DRAYCOTT VILLAGE FUND,500,Dec-20
EREWASH BOROUGH COUNCIL,222751,Balance Sheet,COVID 19 - Additional Restrictions Grant,22/12/20,EAST MIDLANDS MEDICAL SERVICES LTD,1000,Dec-20
EREWASH BOROUGH COUNCIL,222535,Green Space,Materials/Consumables,07/12/20,EASY GATE LTD,270.01,Dec-20
EREWASH BOROUGH COUNCIL,222535,Play Areas,Materials/Consumables,07/12/20,EASY GATE LTD,41.99,Dec-20
EREWASH BOROUGH COUNCIL,222292,Neighbourhood Wardens,Contracted Services,15/11/20,EFFECTIVE SECURITY SERVICES LTD,3224,Dec-20
EREWASH BOROUGH COUNCIL,222541,Neighbourhood Wardens,Contracted Services,22/11/20,EFFECTIVE SECURITY SERVICES LTD,3224,Dec-20
EREWASH BOROUGH COUNCIL,222540,Neighbourhood Wardens,Contracted Services,29/11/20,EFFECTIVE SECURITY SERVICES LTD,3224,Dec-20
EREWASH BOROUGH COUNCIL,222632,Balance Sheet,COVID 19 - Additional Restrictions Grant,16/12/20,ELENA'S BEAUTY & NAILS,1000,Dec-20
EREWASH BOROUGH COUNCIL,222565,Homelessness,Homelessness-Lease Properties,01/11/20,EMH HOMES,1240.06,Dec-20
EREWASH BOROUGH COUNCIL,222564,Homelessness,Homelessness-Lease Properties,01/11/20,EMH HOMES,1142.62,Dec-20
EREWASH BOROUGH COUNCIL,222563,Homelessness,Homelessness-Lease Properties,01/11/20,EMH HOMES,1170.53,Dec-20
EREWASH BOROUGH COUNCIL,222532,Training - Personnel Costs Only,Management Development Training,19/10/20,EQV (UK) LTD,525,Dec-20
EREWASH BOROUGH COUNCIL,222790,Balance Sheet,Payroll Collection A/c - Labour Party Funds,22/12/20,EREWASH LABOUR GROUP,569.54,Dec-20
EREWASH BOROUGH COUNCIL,217645,Community Grants,Grants and Subscriptions,18/03/20,EREWASH VIP'S.,500,Dec-20
EREWASH BOROUGH COUNCIL,222352,External Audit,Audit Fees,27/11/20,ERNST & YOUNG LLP.,10911,Dec-20
EREWASH BOROUGH COUNCIL,222353,External Audit,Audit Fees,27/11/20,ERNST & YOUNG LLP.,10911,Dec-20
EREWASH BOROUGH COUNCIL,222492,Hackney Carriages / Private Hire,Materials/Consumables,24/09/20,EURO BUSINESS SERVICES,221.07,Dec-20
EREWASH BOROUGH COUNCIL,221989,Pride In Erewash,Spend to Save,12/11/20,EUROPLANTS UK LTD,1938,Dec-20
EREWASH BOROUGH COUNCIL,222608,Household/Residual Waste Collection,Repairs and Maintenance,04/12/20,EUROTRUCK MIDLANDS LTD,398,Dec-20
EREWASH BOROUGH COUNCIL,222480,Kerbside Dry Recycling Collection,Repairs and Maintenance,04/12/20,EUROTRUCK MIDLANDS LTD,264,Dec-20
EREWASH BOROUGH COUNCIL,222394,Street Scene,Agency Staff,23/11/20,EXTRA PERSONNEL LTD,399.62,Dec-20
EREWASH BOROUGH COUNCIL,222700,Household/Residual Waste Collection,Agency Staff,02/11/20,EXTRA PERSONNEL LTD,3095.38,Dec-20
EREWASH BOROUGH COUNCIL,222697,Kerbside Dry Recycling Collection,Agency Staff,23/11/20,EXTRA PERSONNEL LTD,2573.97,Dec-20
EREWASH BOROUGH COUNCIL,222283,Street Scene,Agency Staff,16/11/20,EXTRA PERSONNEL LTD,405.3,Dec-20
EREWASH BOROUGH COUNCIL,222698,Kerbside Dry Recycling Collection,Agency Staff,16/11/20,EXTRA PERSONNEL LTD,2493.72,Dec-20
EREWASH BOROUGH COUNCIL,222700,Kerbside Dry Recycling Collection,Agency Staff,02/11/20,EXTRA PERSONNEL LTD,2063.59,Dec-20
EREWASH BOROUGH COUNCIL,222701,Household/Residual Waste Collection,Agency Staff,30/11/20,EXTRA PERSONNEL LTD,3146.49,Dec-20
EREWASH BOROUGH COUNCIL,222285,Green Space,Agency Staff,16/11/20,EXTRA PERSONNEL LTD,1019.72,Dec-20
EREWASH BOROUGH COUNCIL,222537,Green Space,Agency Staff,30/11/20,EXTRA PERSONNEL LTD,1019.72,Dec-20
EREWASH BOROUGH COUNCIL,222537,Street Scene,Agency Staff,30/11/20,EXTRA PERSONNEL LTD,2835.24,Dec-20
EREWASH BOROUGH COUNCIL,222284,Street Scene,Agency Staff,19/11/20,EXTRA PERSONNEL LTD,2864.91,Dec-20
EREWASH BOROUGH COUNCIL,222287,Household/Residual Waste Collection,Agency Staff,09/11/20,EXTRA PERSONNEL LTD,499.87,Dec-20
EREWASH BOROUGH COUNCIL,222698,Household/Residual Waste Collection,Agency Staff,16/11/20,EXTRA PERSONNEL LTD,3740.58,Dec-20
EREWASH BOROUGH COUNCIL,222699,Household/Residual Waste Collection,Agency Staff,09/11/20,EXTRA PERSONNEL LTD,3379.87,Dec-20
EREWASH BOROUGH COUNCIL,222392,Green Space,Materials/Consumables,23/11/20,EXTRA PERSONNEL LTD,689,Dec-20
EREWASH BOROUGH COUNCIL,222699,Kerbside Dry Recycling Collection,Agency Staff,09/11/20,EXTRA PERSONNEL LTD,2253.24,Dec-20
EREWASH BOROUGH COUNCIL,222701,Kerbside Dry Recycling Collection,Agency Staff,30/11/20,EXTRA PERSONNEL LTD,2097.66,Dec-20
EREWASH BOROUGH COUNCIL,222536,Street Scene,Agency Staff,30/11/20,EXTRA PERSONNEL LTD,3061.61,Dec-20
EREWASH BOROUGH COUNCIL,222697,Household/Residual Waste Collection,Agency Staff,23/11/20,EXTRA PERSONNEL LTD,3860.95,Dec-20
EREWASH BOROUGH COUNCIL,222284,Green Space,Agency Staff,19/11/20,EXTRA PERSONNEL LTD,689,Dec-20
EREWASH BOROUGH COUNCIL,222392,Green Space,Agency Staff,23/11/20,EXTRA PERSONNEL LTD,1019.72,Dec-20
EREWASH BOROUGH COUNCIL,222688,Green Space,Agency Staff,07/12/20,EXTRA PERSONNEL LTD,578.76,Dec-20
EREWASH BOROUGH COUNCIL,222285,Street Scene,Agency Staff,16/11/20,EXTRA PERSONNEL LTD,2813.1,Dec-20
EREWASH BOROUGH COUNCIL,222392,Street Scene,Agency Staff,23/11/20,EXTRA PERSONNEL LTD,5337.3,Dec-20
EREWASH BOROUGH COUNCIL,222393,Street Scene,Agency Staff,23/11/20,EXTRA PERSONNEL LTD,405.3,Dec-20
EREWASH BOROUGH COUNCIL,222688,Street Scene,Agency Staff,07/12/20,EXTRA PERSONNEL LTD,3565.54,Dec-20
EREWASH BOROUGH COUNCIL,222536,Green Space,Agency Staff,30/11/20,EXTRA PERSONNEL LTD,689,Dec-20
EREWASH BOROUGH COUNCIL,222538,Street Scene,Agency Staff,30/11/20,EXTRA PERSONNEL LTD,405.3,Dec-20
EREWASH BOROUGH COUNCIL,221903,Green Space,Contracted Services,04/11/20,FITZPATRICK WOOLMER DESIGN & PUBLISHING,417.7,Dec-20
EREWASH BOROUGH COUNCIL,222651,Revenues and Benefits,Postages,16/12/20,FRAMA UK,5000,Dec-20
EREWASH BOROUGH COUNCIL,222327,Homelessness,Homelessness-Lease Properties,22/10/20,FUTURES HOMESCAPE LTD,1141.75,Dec-20
EREWASH BOROUGH COUNCIL,222387,Green Space,Contracted Services,01/12/20,G L JONES PLAYGROUNDS LTD,417.88,Dec-20
EREWASH BOROUGH COUNCIL,222590,Building Control - Fee Earning,Building Control Fees - Broxtowe BC,15/12/20,REDACTED PERSONAL DATA,520,Dec-20
EREWASH BOROUGH COUNCIL,222749,Balance Sheet,COVID 19 - Additional Restrictions Grant,22/12/20,GAVIN DARBY T/A FRAILLOOP,1000,Dec-20
EREWASH BOROUGH COUNCIL,222316,Property and Estates,PPM Mechanical and Equipment,26/11/20,GDUK DOOR SOLUTIONS LIMITED,1575,Dec-20
EREWASH BOROUGH COUNCIL,222625,Erewash Museum,Goods for Resale,27/11/20,GIFTSTONES LTD,542.9,Dec-20
EREWASH BOROUGH COUNCIL,222635,Balance Sheet,COVID 19 - Additional Restrictions Grant,16/12/20,GINFLIGHT COMPANY LIMITED,1000,Dec-20
EREWASH BOROUGH COUNCIL,222424,Green Space,Materials/Consumables,30/11/20,GRAHAM ANDREW,411.45,Dec-20
EREWASH BOROUGH COUNCIL,222366,Arts Development,Special Events,18/11/20,GRAHAM ELSTONE,510,Dec-20
EREWASH BOROUGH COUNCIL,222724,Arts Development,Special Events,15/12/20,GRAHAM ELSTONE,810,Dec-20
EREWASH BOROUGH COUNCIL,221932,Green Space,Materials/Consumables,05/11/20,GROUNDSMAN TOOLS AND SUPPLIES LLP,425.59,Dec-20
EREWASH BOROUGH COUNCIL,222527,Balance Sheet,COVID 19 - Additional Restrictions Grant,09/12/20,H PELL @ BROWNS HAIRDRESSING,1000,Dec-20
EREWASH BOROUGH COUNCIL,222588,Play Areas,Materials/Consumables,02/12/20,HAGSSMP,506.43,Dec-20
EREWASH BOROUGH COUNCIL,222511,Property and Estates,Reactive Maintenance,16/11/20,HALLS LOCKSMITHS LTD,212.5,Dec-20
EREWASH BOROUGH COUNCIL,222637,Balance Sheet,COVID 19 - Additional Restrictions Grant,16/12/20,HEALEYS TOILETRIES,1000,Dec-20
EREWASH BOROUGH COUNCIL,222636,Balance Sheet,COVID 19 - Additional Restrictions Grant,16/12/20,HELPING HOOVES DERBYSHIRE CIC,1000,Dec-20
EREWASH BOROUGH COUNCIL,222758,Balance Sheet,COVID 19 - Additional Restrictions Grant,22/12/20,HH AND SPOOKY NIGHTS LTD,1000,Dec-20
EREWASH BOROUGH COUNCIL,222783,Balance Sheet,Payroll Collection A/c - Attachment Orders,22/12/20,HMCTS,257.09,Dec-20
EREWASH BOROUGH COUNCIL,222357,Balance Sheet,Payroll Collection A/c - Income Tax,01/12/20,HMRC CUMBERNAULD,311.2,Dec-20
EREWASH BOROUGH COUNCIL,222592,Balance Sheet,Payroll Collection A/c - National Insurance,15/12/20,HMRC CUMBERNAULD,101507.62,Dec-20
EREWASH BOROUGH COUNCIL,222357,Balance Sheet,Payroll Collection A/c - National Insurance,01/12/20,HMRC CUMBERNAULD,481.37,Dec-20
EREWASH BOROUGH COUNCIL,222592,Balance Sheet,Apprenticeship Levy,15/12/20,HMRC CUMBERNAULD,3325,Dec-20
EREWASH BOROUGH COUNCIL,222592,Personnel,Apprenticeship Levy,15/12/20,HMRC CUMBERNAULD,-1250,Dec-20
EREWASH BOROUGH COUNCIL,222592,Balance Sheet,Payroll Collection A/c - Income Tax,15/12/20,HMRC CUMBERNAULD,66504.2,Dec-20
EREWASH BOROUGH COUNCIL,222592,Balance Sheet,Payroll Collection A/c - Recovery of Student Loan,15/12/20,HMRC CUMBERNAULD,1232,Dec-20
EREWASH BOROUGH COUNCIL,222760,Balance Sheet,COVID 19 - Additional Restrictions Grant,22/12/20,IAN HANDS CONSULTANCY LTD,1000,Dec-20
EREWASH BOROUGH COUNCIL,222555,Registration of Electors,Printing and Stationery,09/12/20,IDOX SOFTWARE LIMITED,273.93,Dec-20
EREWASH BOROUGH COUNCIL,222764,Revenues and Benefits,Software Licences,21/12/20,IEG4 LIMITED,97250,Dec-20
EREWASH BOROUGH COUNCIL,222504,Car Parking,Reactive Maintenance,17/11/20,ILKESTON FENCING LTD,625.83,Dec-20
EREWASH BOROUGH COUNCIL,222772,Non-domestic Rates Collection,Fees Costs and Expenses,09/12/20,INFORM CPI LTD,264,Dec-20
EREWASH BOROUGH COUNCIL,222570,Car Parking,Credit/Debit Card Charges,30/11/20,INTERNATIONAL PARKING SYSTEMS UK LTD,607.96,Dec-20
EREWASH BOROUGH COUNCIL,222777,Green Space,Payment in Lieu of Notice,21/12/20,REDACTED PERSONAL DATA,1000,Dec-20
EREWASH BOROUGH COUNCIL,222643,Balance Sheet,COVID 19 - Additional Restrictions Grant,16/12/20,JANET TOMBLIN TRAVEL COUNSELLOR,1000,Dec-20
EREWASH BOROUGH COUNCIL,222718,Arts Development,Special Events,14/12/20,JENSON PRESS PRINTERS,800,Dec-20
EREWASH BOROUGH COUNCIL,222329,Insurances - (Corporate matters only),Insurance - General,03/09/20,JLT SPECIALTY LIMITED,403.55,Dec-20
EREWASH BOROUGH COUNCIL,222277,Christmas Lights,Reactive Maintenance,18/10/20,REDACTED PERSONAL DATA,3040,Dec-20
EREWASH BOROUGH COUNCIL,222473,Balance Sheet,Childcare Salary Sacrifice-Kiddie Vouchers,04/12/20,KIDDIVOUCHERS LTD,960.51,Dec-20
EREWASH BOROUGH COUNCIL,222776,Cemeteries,Contracted Services,30/11/20,KINGS ARMOURED SECURITY SERVICES,52.95,Dec-20
EREWASH BOROUGH COUNCIL,222571,Car Parking,Contracted Services,30/11/20,KINGS ARMOURED SECURITY SERVICES,1310.8,Dec-20
EREWASH BOROUGH COUNCIL,222776,Erewash Museum,Goods for Resale,30/11/20,KINGS ARMOURED SECURITY SERVICES,9.95,Dec-20
EREWASH BOROUGH COUNCIL,222776,Front Line Support Services,Security,30/11/20,KINGS ARMOURED SECURITY SERVICES,611.8,Dec-20
EREWASH BOROUGH COUNCIL,222723,Arts Development,Special Events,02/12/20,REDACTED PERSONAL DATA,270,Dec-20
EREWASH BOROUGH COUNCIL,222523,Balance Sheet,COVID 19 - Additional Restrictions Grant,09/12/20,KN AESTHETICS CLINIC,1000,Dec-20
EREWASH BOROUGH COUNCIL,222231,Building Control - Fee Earning,General Publicity and Promotion,23/11/20,LABC EAST MIDLANDS REGION,590,Dec-20
EREWASH BOROUGH COUNCIL,222797,Ilkeston Admin and Courier,Repairs and Maintenance,10/12/20,LARKLANDS BODY & PAINT CENTRE,1161.24,Dec-20
EREWASH BOROUGH COUNCIL,222421,Christmas Lights,Reactive Maintenance,03/12/20,LEISURE LITES LIMTED,1683,Dec-20
EREWASH BOROUGH COUNCIL,222420,General Entertainment,Special Events,03/12/20,LEISURE LITES LIMTED,261.45,Dec-20
EREWASH BOROUGH COUNCIL,222413,Christmas Lights,Planned Preventative Maintenance,03/12/20,LEISURE LITES LIMTED,10000,Dec-20
EREWASH BOROUGH COUNCIL,222371,Parish Council Concurrent Functions,Little Eaton - Precept,02/12/20,LITTLE EATON PARISH COUNCIL,3256,Dec-20
EREWASH BOROUGH COUNCIL,222371,Parish Precepts,Little Eaton - Precept,02/12/20,LITTLE EATON PARISH COUNCIL,4342,Dec-20
EREWASH BOROUGH COUNCIL,222655,Treasury Management and Bank Charges,Lloyds BACS Services,10/11/20,LLOYDS BANK,515.45,Dec-20
EREWASH BOROUGH COUNCIL,222655,Treasury Management and Bank Charges,Lloyds Bank Charges for Debits and Credits,10/11/20,LLOYDS BANK,169.7,Dec-20
EREWASH BOROUGH COUNCIL,222801,Neighbourhood Wardens,Uniforms,02/11/20,LLOYDS BANK,117.89,Dec-20
EREWASH BOROUGH COUNCIL,222801,Green Space,Road Taxes,02/11/20,LLOYDS BANK,302.5,Dec-20
EREWASH BOROUGH COUNCIL,222801,West Park Nursery,Reactive Maintenance,02/11/20,LLOYDS BANK,72.42,Dec-20
EREWASH BOROUGH COUNCIL,222801,Public Conveniences,Reactive Maintenance,02/11/20,LLOYDS BANK,87.89,Dec-20
EREWASH BOROUGH COUNCIL,222801,ICT Support Services,General Equipment,02/11/20,LLOYDS BANK,317.47,Dec-20
EREWASH BOROUGH COUNCIL,222801,Community Services,Printing and Stationery,02/11/20,LLOYDS BANK,44.04,Dec-20
EREWASH BOROUGH COUNCIL,222655,Treasury Management and Bank Charges,Unpaid Cheque Fees,10/11/20,LLOYDS BANK,227.72,Dec-20
EREWASH BOROUGH COUNCIL,222801,Dog Control,Materials/Consumables,02/11/20,LLOYDS BANK,124.99,Dec-20
EREWASH BOROUGH COUNCIL,222801,Legal Services,Practising Certificates,02/11/20,LLOYDS BANK,656,Dec-20
EREWASH BOROUGH COUNCIL,222801,Kerbside Dry Recycling Collection,Road Taxes,02/11/20,LLOYDS BANK,535,Dec-20
EREWASH BOROUGH COUNCIL,222801,ICT Support Services,Printing and Stationery,02/11/20,LLOYDS BANK,16.48,Dec-20
EREWASH BOROUGH COUNCIL,222801,Green Space,Materials/Consumables,02/11/20,LLOYDS BANK,168.81,Dec-20
EREWASH BOROUGH COUNCIL,222801,Property and Estates,Printing and Stationery,02/11/20,LLOYDS BANK,22.66,Dec-20
EREWASH BOROUGH COUNCIL,222801,ICT Support Services,Mobile Phones,02/11/20,LLOYDS BANK,461.04,Dec-20
EREWASH BOROUGH COUNCIL,222801,Homelessness,Homelessness-Lease Properties,02/11/20,LLOYDS BANK,20,Dec-20
EREWASH BOROUGH COUNCIL,222476,Green Space,Tyres,30/11/20,LODGE TYRE COMPANY LTD,1066.5,Dec-20
EREWASH BOROUGH COUNCIL,222476,Neighbourhood Wardens,Tyres,30/11/20,LODGE TYRE COMPANY LTD,48,Dec-20
EREWASH BOROUGH COUNCIL,222476,Street Scene,Tyres,30/11/20,LODGE TYRE COMPANY LTD,60,Dec-20
EREWASH BOROUGH COUNCIL,222476,Trade Waste,Tyres,30/11/20,LODGE TYRE COMPANY LTD,452.02,Dec-20
EREWASH BOROUGH COUNCIL,222476,Household/Residual Waste Collection,Tyres,30/11/20,LODGE TYRE COMPANY LTD,2598.85,Dec-20
EREWASH BOROUGH COUNCIL,222802,Rent Allowances Paid,Rent Allowances,18/12/20,REDACTED PERSONAL DATA,1074,Dec-20
EREWASH BOROUGH COUNCIL,222633,Balance Sheet,COVID 19 - Additional Restrictions Grant,16/12/20,LOVE MY LEAD,500,Dec-20
EREWASH BOROUGH COUNCIL,222747,Balance Sheet,COVID 19 - Additional Restrictions Grant,22/12/20,M&D AESTHETICS,500,Dec-20
EREWASH BOROUGH COUNCIL,222509,Balance Sheet,Building Works,30/11/20,M&J GROUP CONSTRUCTION & ROOFING,26702.43,Dec-20
EREWASH BOROUGH COUNCIL,222553,Corporate Health and Safety,Fire Maintenance,26/11/20,MACDONALD MARTIN LTD,331.36,Dec-20
EREWASH BOROUGH COUNCIL,222546,Corporate Health and Safety,Fire Maintenance,03/12/20,MACDONALD MARTIN LTD,408.64,Dec-20
EREWASH BOROUGH COUNCIL,222350,Balance Sheet,ICT Works,29/11/20,MACILDOWIE RECRUITMENT EXPERTISE,1152.18,Dec-20
EREWASH BOROUGH COUNCIL,222650,Balance Sheet,ICT Works,13/12/20,MACILDOWIE RECRUITMENT EXPERTISE,622.8,Dec-20
EREWASH BOROUGH COUNCIL,222477,Balance Sheet,ICT Works,06/12/20,MACILDOWIE RECRUITMENT EXPERTISE,1152.18,Dec-20
EREWASH BOROUGH COUNCIL,222265,Balance Sheet,ICT Works,22/11/20,MACILDOWIE RECRUITMENT EXPERTISE,1152.18,Dec-20
EREWASH BOROUGH COUNCIL,222103,Household/Residual Waste Collection,Protective Clothing,12/11/20,MAIN MAN SUPPLIES LTD,356.21,Dec-20
EREWASH BOROUGH COUNCIL,222016,Building Control - Fee Earning,Agency Staff,06/11/20,MATCHTECH GROUP (UK) LIMITED,2062.5,Dec-20
EREWASH BOROUGH COUNCIL,222242,Building Control - Fee Earning,Agency Staff,13/11/20,MATCHTECH GROUP (UK) LIMITED,2062.5,Dec-20
EREWASH BOROUGH COUNCIL,222241,Building Control - Fee Earning,Agency Staff,18/11/20,MATCHTECH GROUP (UK) LIMITED,2062.5,Dec-20
EREWASH BOROUGH COUNCIL,222585,Property and Estates,Repairs and Maintenance,08/12/20,MDB PLUMBING (NOTTM) LTD,483.23,Dec-20
EREWASH BOROUGH COUNCIL,222474,Occupational Health and Welfare,Occupational Health Service,06/11/20,MEDIGOLD HEALTH CONSULTANCY LIMITED,763,Dec-20
EREWASH BOROUGH COUNCIL,222475,Occupational Health and Welfare,Occupational Health Service,07/12/20,MEDIGOLD HEALTH CONSULTANCY LIMITED,385.5,Dec-20
EREWASH BOROUGH COUNCIL,222579,Car Parking,Contracted Services,01/12/20,METRIC GROUP LTD,1464.75,Dec-20
EREWASH BOROUGH COUNCIL,222800,Non Ring Fenced Government Grants,Revenue Support Grant,21/12/20,MHCLG,-8438,Dec-20
EREWASH BOROUGH COUNCIL,222800,Balance Sheet,NNDR Collection Fund Control Account,21/12/20,MHCLG,-2317,Dec-20
EREWASH BOROUGH COUNCIL,222800,Balance Sheet,NNDR Collection Fund Control Account,21/12/20,MHCLG,1554426,Dec-20
EREWASH BOROUGH COUNCIL,222800,Balance Sheet,NNDR Collection Fund Control Account,21/12/20,MHCLG,-6833,Dec-20
EREWASH BOROUGH COUNCIL,222500,Civic Duties Hospitality,Civic Regalia and Robes,07/12/20,MICHAELS CIVIC ROBES,238,Dec-20
EREWASH BOROUGH COUNCIL,222500,Civic Duties Hospitality,Civic Events,07/12/20,MICHAELS CIVIC ROBES,144,Dec-20
EREWASH BOROUGH COUNCIL,222526,Balance Sheet,COVID 19 - Additional Restrictions Grant,09/12/20,MIDLAND MEDIA SERVICES LTD,1000,Dec-20
EREWASH BOROUGH COUNCIL,222640,Balance Sheet,COVID 19 - Additional Restrictions Grant,16/12/20,MILLIES RESTAURANT,1000,Dec-20
EREWASH BOROUGH COUNCIL,222641,Balance Sheet,COVID 19 - Additional Restrictions Grant,16/12/20,MILLIES THE COFFEE SHOP,1000,Dec-20
EREWASH BOROUGH COUNCIL,222642,Balance Sheet,COVID 19 - Additional Restrictions Grant,16/12/20,MOHAMMED HANIF T/A TAXI DRIVER,1000,Dec-20
EREWASH BOROUGH COUNCIL,222372,Parish Council Concurrent Functions,Morley - Precept,02/12/20,MORLEY PARISH COUNCIL,339,Dec-20
EREWASH BOROUGH COUNCIL,222372,Parish Precepts,Morley - Precept,02/12/20,MORLEY PARISH COUNCIL,1150,Dec-20
EREWASH BOROUGH COUNCIL,222433,Homelessness,Temporary Accommodation,26/10/20,REDACTED PERSONAL DATA,420,Dec-20
EREWASH BOROUGH COUNCIL,222557,Property and Estates,Reactive Maintenance,02/12/20,N B CONSTRUCTION,2000,Dec-20
EREWASH BOROUGH COUNCIL,222176,Street Scene,Street Furniture,18/11/20,NIBRA SIGNS LTD,629.72,Dec-20
EREWASH BOROUGH COUNCIL,222745,Balance Sheet,COVID 19 - Additional Restrictions Grant,22/12/20,NMT HOSPITALITY LTD,1000,Dec-20
EREWASH BOROUGH COUNCIL,222704,ICT Support Services,Non Domestic Rates Income,07/12/20,NOTTINGHAM CITY COUNCIL..,2150,Dec-20
EREWASH BOROUGH COUNCIL,222073,Street Scene,Materials/Consumables,04/11/20,NOTTINGHAM CITY COUNCIL..,288,Dec-20
EREWASH BOROUGH COUNCIL,222668,Homelessness,Temporary Accommodation,02/12/20,NOVOTEL NOTTINGHAM,315,Dec-20
EREWASH BOROUGH COUNCIL,222668,Homelessness,Temporary Accommodation,02/12/20,NOVOTEL NOTTINGHAM,542.2,Dec-20
EREWASH BOROUGH COUNCIL,222303,ICT Support Services,Mobile Phones,28/10/20,O2 UK LTD,958.45,Dec-20
EREWASH BOROUGH COUNCIL,222373,Parish Council Concurrent Functions,Ockbrook - Precept,02/12/20,OCKBROOK AND BORROWASH PARISH COUNCIL,5933,Dec-20
EREWASH BOROUGH COUNCIL,222373,Parish Precepts,Ockbrook - Precept,02/12/20,OCKBROOK AND BORROWASH PARISH COUNCIL,21932,Dec-20
EREWASH BOROUGH COUNCIL,222752,Balance Sheet,COVID 19 - Additional Restrictions Grant,22/12/20,ODD EXHIBITIONS LTD,1000,Dec-20
EREWASH BOROUGH COUNCIL,222035,Pride In Erewash,Spend to Save,09/11/20,OLD HALL NURSERIES LTD,978.75,Dec-20
EREWASH BOROUGH COUNCIL,222743,Balance Sheet,COVID 19 - Additional Restrictions Grant,22/12/20,ONESTOPCARSHOPUK LIMITED,1000,Dec-20
EREWASH BOROUGH COUNCIL,222469,Balance Sheet,Accountancy Software Licence Payments in Advance,07/12/20,ORACLE CORPORATION UK LTD,806.56,Dec-20
EREWASH BOROUGH COUNCIL,222306,Property and Estates,PPM Mechanical and Equipment,28/10/20,ORTON MECHANICAL SERVICES,473.92,Dec-20
EREWASH BOROUGH COUNCIL,222448,Environmental Protection Act,Work In Default,10/11/20,P G BOSWORTH LIMITED,675,Dec-20
EREWASH BOROUGH COUNCIL,222497,Environmental Protection Act,Work In Default,27/11/20,P G BOSWORTH LIMITED,350,Dec-20
EREWASH BOROUGH COUNCIL,222496,Environmental Protection Act,Work In Default,27/11/20,P G BOSWORTH LIMITED,400,Dec-20
EREWASH BOROUGH COUNCIL,222348,Belvoir Close Maintenance,Path Repairs,24/11/20,PARKIN CONTRACTORS LTD,12290.5,Dec-20
EREWASH BOROUGH COUNCIL,222178,Leisure Contract,Contracted Services,18/11/20,PARKWOOD LEISURE LTD,26733.42,Dec-20
EREWASH BOROUGH COUNCIL,222784,Balance Sheet,EBC Fit for Work Scheme,22/12/20,PARKWOOD LEISURE LTD,473,Dec-20
EREWASH BOROUGH COUNCIL,222530,Leisure Contract,Contracted Services,23/10/20,PARKWOOD LEISURE LTD,32650,Dec-20
EREWASH BOROUGH COUNCIL,222631,Balance Sheet,COVID 19 - Additional Restrictions Grant,16/12/20,REDACTED PERSONAL DATA,500,Dec-20
EREWASH BOROUGH COUNCIL,221958,Civic Duties Hospitality,Remembrance Services,08/11/20,PB FIRE LTD,375,Dec-20
EREWASH BOROUGH COUNCIL,222411,Property and Estates,Repairs and Maintenance,03/12/20,PEEL ELECTRICAL LTD,945.53,Dec-20
EREWASH BOROUGH COUNCIL,222019,Property and Estates,PPM Mechanical and Equipment,10/11/20,PEEL ELECTRICAL LTD,453.75,Dec-20
EREWASH BOROUGH COUNCIL,222355,Property and Estates,PPM Mechanical and Equipment,30/11/20,PEEL ELECTRICAL LTD,820.71,Dec-20
EREWASH BOROUGH COUNCIL,222339,Property and Estates,Repairs and Maintenance,27/11/20,PEEL ELECTRICAL LTD,317.52,Dec-20
EREWASH BOROUGH COUNCIL,222290,Homelessness,Contracted Services,13/11/20,PEOPLE POTENTIAL POSSIBILITIES,13829.5,Dec-20
EREWASH BOROUGH COUNCIL,222290,Homelessness,Contracted Services,13/11/20,PEOPLE POTENTIAL POSSIBILITIES,13214.33,Dec-20
EREWASH BOROUGH COUNCIL,222478,Green Space,Repairs and Maintenance,20/10/20,PERRYS,626.1,Dec-20
EREWASH BOROUGH COUNCIL,222479,Green Space,Repairs and Maintenance,20/10/20,PERRYS,300,Dec-20
EREWASH BOROUGH COUNCIL,221995,Green Space,Repairs and Maintenance,10/11/20,PERRYS,266.08,Dec-20
EREWASH BOROUGH COUNCIL,222638,Balance Sheet,COVID 19 - Additional Restrictions Grant,16/12/20,PETSTAY DERBY,1000,Dec-20
EREWASH BOROUGH COUNCIL,222462,Communications,General Publicity and Promotion,07/12/20,PICTORIAL LTD,400,Dec-20
EREWASH BOROUGH COUNCIL,222459,Ilkeston Charter Fair,Materials/Consumables,07/12/20,PICTORIAL LTD,600,Dec-20
EREWASH BOROUGH COUNCIL,222461,Communications,General Publicity and Promotion,07/12/20,PICTORIAL LTD,800,Dec-20
EREWASH BOROUGH COUNCIL,222457,General Entertainment,Street Entertainment (Christmas),07/12/20,PICTORIAL LTD,400,Dec-20
EREWASH BOROUGH COUNCIL,222460,Communications,General Publicity and Promotion,07/12/20,PICTORIAL LTD,400,Dec-20
EREWASH BOROUGH COUNCIL,222458,General Entertainment,Street Entertainment (Christmas),07/12/20,PICTORIAL LTD,400,Dec-20
EREWASH BOROUGH COUNCIL,222343,Planning Policy,Project Grants,19/11/20,PLANNING AND MANAGEMENT LTD,3762.15,Dec-20
EREWASH BOROUGH COUNCIL,221882,Green Space,Training,05/11/20,PLAYSAFETY LTD,1633,Dec-20
EREWASH BOROUGH COUNCIL,222781,Development Control - Fee Earning,Planning Fees,22/12/20,PORTALPLANQUEST LTD,462,Dec-20
EREWASH BOROUGH COUNCIL,222793,Development Control - Fee Earning,Planning Fees,22/12/20,PORTALPLANQUEST LTD,462,Dec-20
EREWASH BOROUGH COUNCIL,222524,Balance Sheet,COVID 19 - Additional Restrictions Grant,09/12/20,POSH CAR LTD,1000,Dec-20
EREWASH BOROUGH COUNCIL,222140,Street Scene,Vehicle Sweeper Brushes,16/11/20,PROBRUSH,1337.98,Dec-20
EREWASH BOROUGH COUNCIL,222753,Balance Sheet,COVID 19 - Additional Restrictions Grant,22/12/20,PROJECT DELIVERY CONSULTING SERVICES LTD,1000,Dec-20
EREWASH BOROUGH COUNCIL,222332,Green Space,Materials/Consumables,27/11/20,PROTECTIVE WEAR SUPPLIES LTD,465.83,Dec-20
EREWASH BOROUGH COUNCIL,222647,Economic Development,Contracted Services,01/12/20,PROXIMITY FUTURES T/A ELEPHANT WIFI,303.33,Dec-20
EREWASH BOROUGH COUNCIL,222791,Balance Sheet,Payroll Collection A/c - AVCS,22/12/20,PRUDENTIAL,2448.16,Dec-20
EREWASH BOROUGH COUNCIL,222627,Performance Management,Consultants Fees,30/11/20,Q2 LIMITED,2310,Dec-20
EREWASH BOROUGH COUNCIL,222628,Balance Sheet,Counter Fraud Fund,30/11/20,Q2 LIMITED,385,Dec-20
EREWASH BOROUGH COUNCIL,222759,Balance Sheet,COVID 19 - Additional Restrictions Grant,22/12/20,REDACTED PERSONAL DATA,1000,Dec-20
EREWASH BOROUGH COUNCIL,222679,Kerbside Dry Recycling Collection,Agency Staff,26/11/20,QUALITY SERVICE RECRUITMENT LTD,212.08,Dec-20
EREWASH BOROUGH COUNCIL,222679,Household/Residual Waste Collection,Agency Staff,26/11/20,QUALITY SERVICE RECRUITMENT LTD,318.13,Dec-20
EREWASH BOROUGH COUNCIL,222680,Kerbside Dry Recycling Collection,Agency Staff,03/12/20,QUALITY SERVICE RECRUITMENT LTD,85.98,Dec-20
EREWASH BOROUGH COUNCIL,222696,Kerbside Dry Recycling Collection,Agency Staff,10/12/20,QUALITY SERVICE RECRUITMENT LTD,212.08,Dec-20
EREWASH BOROUGH COUNCIL,222288,Household/Residual Waste Collection,Agency Staff,19/11/20,QUALITY SERVICE RECRUITMENT LTD,530.21,Dec-20
EREWASH BOROUGH COUNCIL,222696,Household/Residual Waste Collection,Agency Staff,10/12/20,QUALITY SERVICE RECRUITMENT LTD,318.13,Dec-20
EREWASH BOROUGH COUNCIL,222680,Household/Residual Waste Collection,Agency Staff,03/12/20,QUALITY SERVICE RECRUITMENT LTD,128.97,Dec-20
EREWASH BOROUGH COUNCIL,222184,Balance Sheet,ICT Software Licence Payment in Advance,15/11/20,QUEST SOFTWARE INTERNATIONAL LIMITED,1350,Dec-20
EREWASH BOROUGH COUNCIL,222739,Transport Trading Account,Agency Staff,14/12/20,QUESTECH RECRUITMENT LTD,906.5,Dec-20
EREWASH BOROUGH COUNCIL,222609,Transport Trading Account,Agency Staff,07/12/20,QUESTECH RECRUITMENT LTD,906.5,Dec-20
EREWASH BOROUGH COUNCIL,222471,Transport Trading Account,Agency Staff,30/11/20,QUESTECH RECRUITMENT LTD,784,Dec-20
EREWASH BOROUGH COUNCIL,222617,Green Space,Materials/Consumables,01/12/20,RAILWAY SLEEPERS Ltd,1360,Dec-20
EREWASH BOROUGH COUNCIL,222487,Building Control - Advice and Information,Contracted Services,01/12/20,RANSOMWOOD ESTATES UK LIMITED,531.67,Dec-20
EREWASH BOROUGH COUNCIL,222342,Building Control - Fee Earning,Agency Staff,20/11/20,REED SPECIALIST RECRUITMENT LTD,351.6,Dec-20
EREWASH BOROUGH COUNCIL,222488,Building Control - Fee Earning,Agency Staff,27/11/20,REED SPECIALIST RECRUITMENT LTD,351.6,Dec-20
EREWASH BOROUGH COUNCIL,222648,Building Control - Fee Earning,Agency Staff,11/12/20,REED SPECIALIST RECRUITMENT LTD,351.6,Dec-20
EREWASH BOROUGH COUNCIL,222775,Building Control - Fee Earning,Agency Staff,18/12/20,REED SPECIALIST RECRUITMENT LTD,351.6,Dec-20
EREWASH BOROUGH COUNCIL,222374,Parish Council Concurrent Functions,Risley - Precept,02/12/20,RISLEY WITH HOPWELL PARISH COUNCIL,1837,Dec-20
EREWASH BOROUGH COUNCIL,222374,Parish Precepts,Risley - Precept,02/12/20,RISLEY WITH HOPWELL PARISH COUNCIL,2378,Dec-20
EREWASH BOROUGH COUNCIL,222686,Revenues and Benefits,Postages,16/12/20,ROYAL MAIL GROUP LTD.,1235.75,Dec-20
EREWASH BOROUGH COUNCIL,222324,Revenues and Benefits,Postages,25/11/20,ROYAL MAIL GROUP LTD.,1633.55,Dec-20
EREWASH BOROUGH COUNCIL,222499,Communications,General Publicity and Promotion,02/12/20,ROYAL MAIL GROUP LTD.,5257.04,Dec-20
EREWASH BOROUGH COUNCIL,222667,Planning Policy,Maintenance of Equipment,30/11/20,RUSHCLIFFE BOROUGH COUNCIL,1410.42,Dec-20
EREWASH BOROUGH COUNCIL,222726,Green Space,Materials/Consumables,18/11/20,SAFETY SIGNS & NOTICES,297,Dec-20
EREWASH BOROUGH COUNCIL,222725,Green Space,Materials/Consumables,16/11/20,SAFETY SIGNS & NOTICES,668.25,Dec-20
EREWASH BOROUGH COUNCIL,222375,Parish Precepts,Sandiacre - Precept,02/12/20,SANDIACRE PARISH COUNCIL,12503,Dec-20
EREWASH BOROUGH COUNCIL,222375,Parish Council Concurrent Functions,Sandiacre - Precept,02/12/20,SANDIACRE PARISH COUNCIL,6678,Dec-20
EREWASH BOROUGH COUNCIL,222376,Parish Precepts,Sawley - Precept,02/12/20,SAWLEY PARISH COUNCIL,11799,Dec-20
EREWASH BOROUGH COUNCIL,222376,Parish Council Concurrent Functions,Sawley - Precept,02/12/20,SAWLEY PARISH COUNCIL,531,Dec-20
EREWASH BOROUGH COUNCIL,222779,Green Space,Materials/Consumables,21/12/20,REDACTED PERSONAL DATA,1629.98,Dec-20
EREWASH BOROUGH COUNCIL,222390,Civic Accommodation - Ilkeston,Metered Water,01/12/20,SCOTTISH WATER BUSINESS STREAM LIMITED,54.97,Dec-20
EREWASH BOROUGH COUNCIL,222390,Civic Accommodation - Long Eaton,Metered Water,01/12/20,SCOTTISH WATER BUSINESS STREAM LIMITED,90.25,Dec-20
EREWASH BOROUGH COUNCIL,222390,Merlin Way Depot - Ilkeston,Metered Water,01/12/20,SCOTTISH WATER BUSINESS STREAM LIMITED,6087.25,Dec-20
EREWASH BOROUGH COUNCIL,222390,Public Conveniences,Metered Water,01/12/20,SCOTTISH WATER BUSINESS STREAM LIMITED,558.33,Dec-20
EREWASH BOROUGH COUNCIL,222390,Shopmobility - Long Eaton,Metered Water,01/12/20,SCOTTISH WATER BUSINESS STREAM LIMITED,10.64,Dec-20
EREWASH BOROUGH COUNCIL,222390,Car Parking,Unmetered Water,01/12/20,SCOTTISH WATER BUSINESS STREAM LIMITED,0.16,Dec-20
EREWASH BOROUGH COUNCIL,222390,Long Eaton Market,Metered Water,01/12/20,SCOTTISH WATER BUSINESS STREAM LIMITED,145.02,Dec-20
EREWASH BOROUGH COUNCIL,222390,Cemeteries,Metered Water,01/12/20,SCOTTISH WATER BUSINESS STREAM LIMITED,22.44,Dec-20
EREWASH BOROUGH COUNCIL,222390,Shopmobility - Ilkeston,Metered Water,01/12/20,SCOTTISH WATER BUSINESS STREAM LIMITED,22.11,Dec-20
EREWASH BOROUGH COUNCIL,222390,Rutland Sports Park,Metered Water,01/12/20,SCOTTISH WATER BUSINESS STREAM LIMITED,113.18,Dec-20
EREWASH BOROUGH COUNCIL,222390,Green Space,Metered Water,01/12/20,SCOTTISH WATER BUSINESS STREAM LIMITED,357.7,Dec-20
EREWASH BOROUGH COUNCIL,222390,Cotmanhay Pavilion,Unmetered Water,01/12/20,SCOTTISH WATER BUSINESS STREAM LIMITED,4.12,Dec-20
EREWASH BOROUGH COUNCIL,222390,Erewash Museum,Unmetered Water,01/12/20,SCOTTISH WATER BUSINESS STREAM LIMITED,18.88,Dec-20
EREWASH BOROUGH COUNCIL,222390,Allotments,Metered Water,01/12/20,SCOTTISH WATER BUSINESS STREAM LIMITED,-511.89,Dec-20
EREWASH BOROUGH COUNCIL,222722,Arts Development,Special Events,17/12/20,SHED 2 STUDIOS,270,Dec-20
EREWASH BOROUGH COUNCIL,222685,Street Scene,Maintenance of Bus Shelters,06/11/20,SHELTER MAINTENANCE CO,7745.4,Dec-20
EREWASH BOROUGH COUNCIL,222528,Balance Sheet,COVID 19 - Additional Restrictions Grant,09/12/20,SHERBETS EVENTS UK LTD,1000,Dec-20
EREWASH BOROUGH COUNCIL,222307,Training - Personnel Costs Only,Management Development Training,10/09/20,SOLACE,350,Dec-20
EREWASH BOROUGH COUNCIL,221986,"Police, Crime Commissioner Community Safety Grant",Project Grants,06/11/20,SOLON SECURITY LTD,700,Dec-20
EREWASH BOROUGH COUNCIL,222377,Parish Council Concurrent Functions,Stanley - Precept,02/12/20,STANLEY & STANLEY COMMON PARISH COUNCIL,2065,Dec-20
EREWASH BOROUGH COUNCIL,222377,Parish Precepts,Stanley - Precept,02/12/20,STANLEY & STANLEY COMMON PARISH COUNCIL,4408,Dec-20
EREWASH BOROUGH COUNCIL,222382,Green Space,Materials/Consumables,30/11/20,STANTON RECYCLING LIMITED,949.6,Dec-20
EREWASH BOROUGH COUNCIL,222378,Parish Precepts,Stanton by Dale - Precept,02/12/20,STANTON-BY-DALE PARISH COUNCIL,1491,Dec-20
EREWASH BOROUGH COUNCIL,222378,Parish Council Concurrent Functions,Stanton by Dale - Precept,02/12/20,STANTON-BY-DALE PARISH COUNCIL,1133,Dec-20
EREWASH BOROUGH COUNCIL,222754,Balance Sheet,COVID 19 - Additional Restrictions Grant,22/12/20,STAY & PLAY FOR DOGS,1000,Dec-20
EREWASH BOROUGH COUNCIL,222338,Property and Estates,Planned Preventative Maintenance,27/11/20,STEELCRAFT FABRICATIONS,1600,Dec-20
EREWASH BOROUGH COUNCIL,222033,Pedestrian Zones - Ilkeston and Long Eaton,Reactive Maintenance,06/11/20,STEELCRAFT FABRICATIONS,780,Dec-20
EREWASH BOROUGH COUNCIL,222539,Corporate Health and Safety,Water Testing (Legionella),30/11/20,STERILIZING SERVICES LTD,1210.9,Dec-20
EREWASH BOROUGH COUNCIL,222757,Balance Sheet,COVID 19 - Additional Restrictions Grant,22/12/20,STREET FOOD KITCHEN,1000,Dec-20
EREWASH BOROUGH COUNCIL,222173,Green Space,Materials/Consumables,11/11/20,STREETMASTER (SOUTH WALES) LTD,122,Dec-20
EREWASH BOROUGH COUNCIL,222173,HLF Victoria Park Restoration,Training,11/11/20,STREETMASTER (SOUTH WALES) LTD,262.07,Dec-20
EREWASH BOROUGH COUNCIL,222173,HLF Victoria Park Restoration,Printing and Stationery,11/11/20,STREETMASTER (SOUTH WALES) LTD,325.93,Dec-20
EREWASH BOROUGH COUNCIL,222173,HLF Victoria Park Restoration,Volunteer Training,11/11/20,STREETMASTER (SOUTH WALES) LTD,810,Dec-20
EREWASH BOROUGH COUNCIL,222748,Balance Sheet,COVID 19 - Additional Restrictions Grant,22/12/20,STUARTS HAIR & BEAUTY,1000,Dec-20
EREWASH BOROUGH COUNCIL,222744,Balance Sheet,COVID 19 - Additional Restrictions Grant,22/12/20,STYLISH HOMES (NOTTS) LTD,1000,Dec-20
EREWASH BOROUGH COUNCIL,222408,Household/Residual Waste Collection,Repairs and Maintenance,20/11/20,T P HOPWELL (BIRMINGHAM) LTD,2271.14,Dec-20
EREWASH BOROUGH COUNCIL,222746,Balance Sheet,COVID 19 - Additional Restrictions Grant,22/12/20,TAYLORMADE JOINERY CONSULTANTS,500,Dec-20
EREWASH BOROUGH COUNCIL,222517,Property and Estates,Alarms Planned Maintenence,03/12/20,TECSERV UK,925.67,Dec-20
EREWASH BOROUGH COUNCIL,222020,Property and Estates,Alarms Planned Maintenence,04/11/20,TECSERV UK,925.67,Dec-20
EREWASH BOROUGH COUNCIL,222512,ICT Support Services,Telephones,01/12/20,TELEPHONE TECHNOLOGY LTD,210,Dec-20
EREWASH BOROUGH COUNCIL,221873,Household/Residual Waste Collection,Repairs and Maintenance,05/11/20,TERBERG MATEC UK,572.97,Dec-20
EREWASH BOROUGH COUNCIL,222206,Household/Residual Waste Collection,Repairs and Maintenance,19/11/20,TERBERG MATEC UK,643.75,Dec-20
EREWASH BOROUGH COUNCIL,221874,Household/Residual Waste Collection,Repairs and Maintenance,06/11/20,TERBERG MATEC UK,529.68,Dec-20
EREWASH BOROUGH COUNCIL,222397,Household/Residual Waste Collection,Repairs and Maintenance,20/11/20,TERBERG MATEC UK,612.63,Dec-20
EREWASH BOROUGH COUNCIL,222000,Household/Residual Waste Collection,Repairs and Maintenance,06/11/20,TERBERG MATEC UK,1120.68,Dec-20
EREWASH BOROUGH COUNCIL,222000,Kerbside Dry Recycling Collection,Repairs and Maintenance,06/11/20,TERBERG MATEC UK,273.64,Dec-20
EREWASH BOROUGH COUNCIL,222773,Economic Development,Project Grants,30/09/20,TERSUS CONSULTANCY LTD,850,Dec-20
EREWASH BOROUGH COUNCIL,222456,Legal Services,Reference Literature and Publications,01/12/20,THOMSON REUTERS,12460,Dec-20
EREWASH BOROUGH COUNCIL,222464,Registration of Electors,Subscriptions,01/12/20,THOMSON REUTERS,230,Dec-20
EREWASH BOROUGH COUNCIL,222464,Registration of Electors,Printing and Stationery,01/12/20,THOMSON REUTERS,35,Dec-20
EREWASH BOROUGH COUNCIL,222681,Kerbside Dry Recycling Collection,Agency Staff,25/11/20,THORN BAKER LIMITED,1036.6,Dec-20
EREWASH BOROUGH COUNCIL,222702,Kerbside Dry Recycling Collection,Agency Staff,09/12/20,THORN BAKER LIMITED,1454.62,Dec-20
EREWASH BOROUGH COUNCIL,222677,Household/Residual Waste Collection,Agency Staff,17/11/20,THORN BAKER LIMITED,1619.7,Dec-20
EREWASH BOROUGH COUNCIL,222677,Kerbside Dry Recycling Collection,Agency Staff,17/11/20,THORN BAKER LIMITED,1079.8,Dec-20
EREWASH BOROUGH COUNCIL,222682,Kerbside Dry Recycling Collection,Agency Staff,02/12/20,THORN BAKER LIMITED,1400.23,Dec-20
EREWASH BOROUGH COUNCIL,222681,Household/Residual Waste Collection,Agency Staff,25/11/20,THORN BAKER LIMITED,1554.9,Dec-20
EREWASH BOROUGH COUNCIL,222682,Household/Residual Waste Collection,Agency Staff,02/12/20,THORN BAKER LIMITED,2100.34,Dec-20
EREWASH BOROUGH COUNCIL,222702,Household/Residual Waste Collection,Agency Staff,09/12/20,THORN BAKER LIMITED,2181.92,Dec-20
EREWASH BOROUGH COUNCIL,222160,Property and Estates,Planned Preventative Maintenance,14/11/20,TIME ASSURED LIMITED,360,Dec-20
EREWASH BOROUGH COUNCIL,222645,Trees Hedges and Local Nature Reserves,Contracted Services,23/10/20,TOM RICHARDS TREE SERVICES,1100,Dec-20
EREWASH BOROUGH COUNCIL,222203,Trees Hedges and Local Nature Reserves,Contracted Services,23/11/20,TOM RICHARDS TREE SERVICES,2050,Dec-20
EREWASH BOROUGH COUNCIL,222296,Trees Hedges and Local Nature Reserves,Contracted Services,25/11/20,TOM RICHARDS TREE SERVICES,3900,Dec-20
EREWASH BOROUGH COUNCIL,222175,Long Eaton Market,Electricity,18/11/20,TOTAL GAS & POWER LTD,47.55,Dec-20
EREWASH BOROUGH COUNCIL,222175,Abbotsford Community Centre,Electricity,18/11/20,TOTAL GAS & POWER LTD,375.48,Dec-20
EREWASH BOROUGH COUNCIL,222335,Bridge House - Long Eaton,Gas,13/11/20,TOTAL GAS & POWER LTD,198.64,Dec-20
EREWASH BOROUGH COUNCIL,222175,Civic Accommodation - Long Eaton,Electricity,18/11/20,TOTAL GAS & POWER LTD,34.23,Dec-20
EREWASH BOROUGH COUNCIL,222175,Bridge Arches - Long Eaton,Electricity,18/11/20,TOTAL GAS & POWER LTD,61.95,Dec-20
EREWASH BOROUGH COUNCIL,222175,CCTV - Ilkeston and Long Eaton,Electricity,18/11/20,TOTAL GAS & POWER LTD,313.2,Dec-20
EREWASH BOROUGH COUNCIL,222183,Green Space,Electricity,17/11/20,TOTAL GAS & POWER LTD,820.82,Dec-20
EREWASH BOROUGH COUNCIL,222175,Toll Bar House - Ilkeston,Electricity,18/11/20,TOTAL GAS & POWER LTD,363.59,Dec-20
EREWASH BOROUGH COUNCIL,222175,Car Parking,Electricity,18/11/20,TOTAL GAS & POWER LTD,658.94,Dec-20
EREWASH BOROUGH COUNCIL,222175,Shopmobility - Long Eaton,Electricity,18/11/20,TOTAL GAS & POWER LTD,-94.45,Dec-20
EREWASH BOROUGH COUNCIL,222175,Cotmanhay Pavilion,Electricity,18/11/20,TOTAL GAS & POWER LTD,64.74,Dec-20
EREWASH BOROUGH COUNCIL,222335,Green Space,Gas,13/11/20,TOTAL GAS & POWER LTD,238.84,Dec-20
EREWASH BOROUGH COUNCIL,222183,Civic Accommodation - Ilkeston,Electricity,17/11/20,TOTAL GAS & POWER LTD,1205.29,Dec-20
EREWASH BOROUGH COUNCIL,222183,Civic Accommodation - Long Eaton,Electricity,17/11/20,TOTAL GAS & POWER LTD,1679.58,Dec-20
EREWASH BOROUGH COUNCIL,222175,Ilkeston Market,Electricity,18/11/20,TOTAL GAS & POWER LTD,378.15,Dec-20
EREWASH BOROUGH COUNCIL,222175,Public Conveniences,Electricity,18/11/20,TOTAL GAS & POWER LTD,-1250.25,Dec-20
EREWASH BOROUGH COUNCIL,222183,Sandiacre Friesland Sports Centre,Electricity,17/11/20,TOTAL GAS & POWER LTD,345.48,Dec-20
EREWASH BOROUGH COUNCIL,222335,Abbotsford Community Centre,Gas,13/11/20,TOTAL GAS & POWER LTD,158.15,Dec-20
EREWASH BOROUGH COUNCIL,222175,Erewash Museum,Electricity,18/11/20,TOTAL GAS & POWER LTD,222.53,Dec-20
EREWASH BOROUGH COUNCIL,222175,Green Space,Electricity,18/11/20,TOTAL GAS & POWER LTD,-169.46,Dec-20
EREWASH BOROUGH COUNCIL,222335,Erewash Museum,Gas,13/11/20,TOTAL GAS & POWER LTD,246.9,Dec-20
EREWASH BOROUGH COUNCIL,222183,Merlin Way Depot - Ilkeston,Electricity,17/11/20,TOTAL GAS & POWER LTD,1570.7,Dec-20
EREWASH BOROUGH COUNCIL,222175,Belvoir Close Maintenance,Electricity,18/11/20,TOTAL GAS & POWER LTD,27.91,Dec-20
EREWASH BOROUGH COUNCIL,222175,Public Clocks,Electricity,18/11/20,TOTAL GAS & POWER LTD,19.58,Dec-20
EREWASH BOROUGH COUNCIL,222175,Shopmobility - Ilkeston,Electricity,18/11/20,TOTAL GAS & POWER LTD,144.67,Dec-20
EREWASH BOROUGH COUNCIL,222335,Civic Accommodation - Ilkeston,Gas,13/11/20,TOTAL GAS & POWER LTD,923.72,Dec-20
EREWASH BOROUGH COUNCIL,222183,Long Eaton Market,Electricity,17/11/20,TOTAL GAS & POWER LTD,151.21,Dec-20
EREWASH BOROUGH COUNCIL,222175,Pewit Golf Course,Electricity,18/11/20,TOTAL GAS & POWER LTD,72.17,Dec-20
EREWASH BOROUGH COUNCIL,222335,Sandiacre Friesland Sports Centre,Gas,13/11/20,TOTAL GAS & POWER LTD,98.64,Dec-20
EREWASH BOROUGH COUNCIL,222175,Civic Accommodation - Ilkeston,Electricity,18/11/20,TOTAL GAS & POWER LTD,266.99,Dec-20
EREWASH BOROUGH COUNCIL,222175,Cemeteries,Electricity,18/11/20,TOTAL GAS & POWER LTD,95.36,Dec-20
EREWASH BOROUGH COUNCIL,222335,Civic Accommodation - Long Eaton,Gas,13/11/20,TOTAL GAS & POWER LTD,745.56,Dec-20
EREWASH BOROUGH COUNCIL,222335,Merlin Way Depot - Ilkeston,Gas,13/11/20,TOTAL GAS & POWER LTD,319.74,Dec-20
EREWASH BOROUGH COUNCIL,222335,Rutland Sports Park,Gas,13/11/20,TOTAL GAS & POWER LTD,199.62,Dec-20
EREWASH BOROUGH COUNCIL,222671,Transport Trading Account,Agency Staff,27/11/20,TOTAL TRANSPORT COMPLIANCE,1500,Dec-20
EREWASH BOROUGH COUNCIL,222192,Green Space,Agency Staff,13/11/20,TOTAL TRANSPORT COMPLIANCE,1100,Dec-20
EREWASH BOROUGH COUNCIL,222761,Transport Trading Account,Agency Staff,11/12/20,TOTAL TRANSPORT COMPLIANCE,1500,Dec-20
EREWASH BOROUGH COUNCIL,222626,Erewash Museum,Goods for Resale,02/12/20,TOWN MILLS CRAFT CENTRE LTD T/A HOUSE OF MARBLES,329.64,Dec-20
EREWASH BOROUGH COUNCIL,222788,Balance Sheet,Payroll Collection A/c - Trade Union Subscriptions,22/12/20,UNISON,488.6,Dec-20
EREWASH BOROUGH COUNCIL,222788,Payments,Commission,22/12/20,UNISON,-7.33,Dec-20
EREWASH BOROUGH COUNCIL,222734,Property and Estates,Planned Preventative Maintenance,18/12/20,V G STOKES & SONS.,1326,Dec-20
EREWASH BOROUGH COUNCIL,222733,Property and Estates,Planned Preventative Maintenance,18/12/20,V G STOKES & SONS.,360,Dec-20
EREWASH BOROUGH COUNCIL,222756,Balance Sheet,COVID 19 - Additional Restrictions Grant,22/12/20,VICKYS SWIMSCHOOL,1000,Dec-20
EREWASH BOROUGH COUNCIL,222445,Homelessness,Temporary Accommodation,29/10/20,VICTORIA PARK HOTEL,3378.67,Dec-20
EREWASH BOROUGH COUNCIL,222447,Homelessness,Temporary Accommodation,29/10/20,VICTORIA PARK HOTEL,240.33,Dec-20
EREWASH BOROUGH COUNCIL,222531,Homelessness,Temporary Accommodation,08/12/20,VICTORIA PARK HOTEL,414,Dec-20
EREWASH BOROUGH COUNCIL,222437,Homelessness,Temporary Accommodation,29/10/20,VICTORIA PARK HOTEL,6657.33,Dec-20
EREWASH BOROUGH COUNCIL,222442,Homelessness,Temporary Accommodation,29/10/20,VICTORIA PARK HOTEL,2448.33,Dec-20
EREWASH BOROUGH COUNCIL,222440,Homelessness,Temporary Accommodation,29/10/20,VICTORIA PARK HOTEL,4311.33,Dec-20
EREWASH BOROUGH COUNCIL,222438,Homelessness,Temporary Accommodation,29/10/20,VICTORIA PARK HOTEL,9750,Dec-20
EREWASH BOROUGH COUNCIL,222441,Homelessness,Temporary Accommodation,29/10/20,VICTORIA PARK HOTEL,378.33,Dec-20
EREWASH BOROUGH COUNCIL,222444,Homelessness,Temporary Accommodation,29/10/20,VICTORIA PARK HOTEL,3828.33,Dec-20
EREWASH BOROUGH COUNCIL,222439,Homelessness,Temporary Accommodation,29/10/20,VICTORIA PARK HOTEL,2862.33,Dec-20
EREWASH BOROUGH COUNCIL,222300,ICT Support Services,Data Lines,01/10/20,VODAFONE,1355.74,Dec-20
EREWASH BOROUGH COUNCIL,221931,Green Space,Materials/Consumables,09/11/20,W E HEWITT & SON LTD,1863.86,Dec-20
EREWASH BOROUGH COUNCIL,222507,Communications,General Publicity and Promotion,26/11/20,WALSTEAD PETERBOROUGH LIMITED,5616,Dec-20
EREWASH BOROUGH COUNCIL,222713,Street Scene,Materials/Consumables,11/11/20,WARD RECYCLING,479,Dec-20
EREWASH BOROUGH COUNCIL,222379,Parish Council Concurrent Functions,West Hallam - Precept,02/12/20,WEST HALLAM PARISH COUNCIL,3476,Dec-20
EREWASH BOROUGH COUNCIL,222379,Parish Precepts,West Hallam - Precept,02/12/20,WEST HALLAM PARISH COUNCIL,9944,Dec-20
EREWASH BOROUGH COUNCIL,222109,Play Areas,Materials/Consumables,16/11/20,WICKSTEED LEISURE LTD,307.27,Dec-20
EREWASH BOROUGH COUNCIL,222615,Legal Services,"Stamp Duty,Search and Legal Fees",10/12/20,WILKIN CHAPMAN LLP,1712.5,Dec-20
EREWASH BOROUGH COUNCIL,222325,Council Tax Collection,Fees Costs and Expenses,10/11/20,WILKIN CHAPMAN LLP,690,Dec-20
EREWASH BOROUGH COUNCIL,222694,Kerbside Dry Recycling Collection,Agency Staff,28/11/20,WORKCHAIN LTD,696.49,Dec-20
EREWASH BOROUGH COUNCIL,222695,Household/Residual Waste Collection,Agency Staff,05/12/20,WORKCHAIN LTD,1044.73,Dec-20
EREWASH BOROUGH COUNCIL,222678,Kerbside Dry Recycling Collection,Agency Staff,14/11/20,WORKCHAIN LTD,606.42,Dec-20
EREWASH BOROUGH COUNCIL,222187,Household/Residual Waste Collection,Agency Staff,07/11/20,WORKCHAIN LTD,1741.22,Dec-20
EREWASH BOROUGH COUNCIL,222695,Kerbside Dry Recycling Collection,Agency Staff,05/12/20,WORKCHAIN LTD,696.49,Dec-20
EREWASH BOROUGH COUNCIL,222683,Kerbside Dry Recycling Collection,Agency Staff,21/11/20,WORKCHAIN LTD,466.64,Dec-20
EREWASH BOROUGH COUNCIL,222694,Household/Residual Waste Collection,Agency Staff,28/11/20,WORKCHAIN LTD,1044.73,Dec-20
EREWASH BOROUGH COUNCIL,222678,Household/Residual Waste Collection,Agency Staff,14/11/20,WORKCHAIN LTD,909.62,Dec-20
EREWASH BOROUGH COUNCIL,222683,Household/Residual Waste Collection,Agency Staff,21/11/20,WORKCHAIN LTD,699.97,Dec-20
EREWASH BOROUGH COUNCIL,222582,Insurances,Uninsured Risks,02/12/20,ZURICH MUNICIPAL,733.16,Dec-20
